[Event "MČR juniorů a juniorek v rapid šachu 2024"]
[Site "Hotel Fit Fun, Harrachov, Czech Republic"]
[Date "2024.09.21"]
[Round "4.25"]
[White "Stara Zuzana"]
[Black "Slivova Linda"]
[Result "1/2-1/2"]
[TimeControl "20+5"]
[WhiteFideId "23733543"]
[BlackFideId "23709294"]
[WhiteElo "1796"]
[BlackElo "1630"]

1. e4 {[%clk 00:20:09]} {[%emt 01:23:28]} d5 {[%clk 00:20:09]} 2. exd5 {[%clk
00:20:11]} {[%emt 00:00:02]} Qxd5 {[%clk 00:20:13]} {[%emt 00:00:04]} 3. Nc3
{[%clk 00:20:15]} Qd6 {[%clk 00:20:17]} 4. d4 {[%clk 00:20:18]} {[%emt
00:00:02]} Nf6 {[%clk 00:20:20]} {[%emt 00:00:02]} 5. Nf3 {[%clk 00:20:21]}
{[%emt 00:00:03]} c6 {[%clk 00:20:24]} 6. Ne5 {[%clk 00:20:24]} {[%emt
00:00:02]} Nbd7 {[%clk 00:20:19]} {[%emt 00:00:10]} 7. f4 {[%clk 00:20:20]}
{[%emt 00:00:09]} Nb6 {[%clk 00:20:08]} {[%emt 00:00:16]} 8. g4 {[%clk
00:20:20]} {[%emt 00:00:05]} e6 {[%clk 00:19:20]} {[%emt 00:00:52]} 9. Bg2
{[%clk 00:19:49]} {[%emt 00:00:36]} Qc7 {[%clk 00:18:50]} {[%emt 00:00:36]} 10.
O-O {[%clk 00:18:44]} {[%emt 00:01:09]} Bd6 {[%clk 00:15:57]} {[%emt 00:02:59]}
11. g5 {[%clk 00:18:46]} {[%emt 00:00:03]} Nfd5 {[%clk 00:15:48]} {[%emt
00:00:13]} 12. Qh5 {[%clk 00:17:11]} {[%emt 00:01:38]} g6 {[%clk 00:10:28]}
{[%emt 00:05:28]} 13. Qh6 {[%clk 00:17:10]} {[%emt 00:00:02]} Bf8 {[%clk
00:10:06]} {[%emt 00:00:31]} 14. Qh3 {[%clk 00:16:54]} {[%emt 00:00:17]} Bg7
{[%clk 00:09:59]} {[%emt 00:00:16]} 15. Bd2 {[%clk 00:13:58]} {[%emt 00:03:01]}
Nxc3 {[%clk 00:09:35]} {[%emt 00:00:29]} 16. bxc3 {[%clk 00:13:39]} {[%emt
00:00:24]} O-O {[%clk 00:08:35]} {[%emt 00:01:05]} 17. Qg3 {[%clk 00:11:52]}
{[%emt 00:01:52]} c5 {[%clk 00:07:25]} {[%emt 00:01:15]} 18. Rac1 {[%clk
00:09:39]} {[%emt 00:02:18]} c4 {[%clk 00:05:18]} {[%emt 00:02:11]} 19. h4
{[%clk 00:09:09]} {[%emt 00:00:36]} Nd5 {[%clk 00:05:11]} {[%emt 00:00:12]} 20.
h5 {[%clk 00:07:59]} {[%emt 00:01:14]} b5 {[%clk 00:04:10]} {[%emt 00:01:07]}
21. a3 {[%clk 00:07:03]} {[%emt 00:01:01]} Bb7 {[%clk 00:04:10]} {[%emt
00:00:05]} 22. Kh2 {[%clk 00:06:53]} {[%emt 00:00:15]} Ne7 {[%clk 00:03:08]}
{[%emt 00:01:07]} 23. Rh1 {[%clk 00:05:30]} {[%emt 00:01:28]} Nf5 {[%clk
00:03:11]} {[%emt 00:00:02]} 24. Qh3 {[%clk 00:05:24]} {[%emt 00:00:10]} Bxe5
{[%clk 00:03:14]} {[%emt 00:00:03]} 25. fxe5 {[%clk 00:05:10]} {[%emt
00:00:19]} Bxg2 {[%clk 00:03:17]} {[%emt 00:00:02]} 26. Qxg2 {[%clk 00:04:58]}
{[%emt 00:00:16]} Qd7 {[%clk 00:02:27]} {[%emt 00:00:55]} 27. hxg6 {[%clk
00:03:42]} {[%emt 00:01:22]} fxg6 {[%clk 00:02:31]} {[%emt 00:00:01]} 28. Rhf1
{[%clk 00:03:39]} {[%emt 00:00:07]} Rad8 {[%clk 00:02:17]} {[%emt 00:00:20]} 29.
Rb1 {[%clk 00:02:54]} {[%emt 00:00:50]} a6 {[%clk 00:01:43]} {[%emt 00:00:39]}
30. a4 {[%clk 00:02:19]} {[%emt 00:00:40]} Rb8 {[%clk 00:01:22]} {[%emt
00:00:26]} 31. axb5 {[%clk 00:01:52]} {[%emt 00:00:32]} 1/2-1/2



[ePGN "0.1;DGT LiveChess/2.2.6"]

[Event "MČR juniorů a juniorek v rapid šachu 2024"]
[Site "Hotel Fit Fun, Harrachov, Czech Republic"]
[Date "2024.09.21"]
[Round "4.26"]
[White "Marxova Sarka"]
[Black "Andrle Filip"]
[Result "0-1"]
[TimeControl "20+5"]
[WhiteFideId "23701862"]
[BlackFideId "23718749"]
[WhiteElo "1684"]
[BlackElo "1789"]

1. e4 {[%clk 00:20:08]} c5 {[%clk 00:20:07]} {[%emt 00:00:04]} 2. Nf3 {[%clk
00:20:11]} {[%emt 00:00:02]} Nc6 {[%clk 00:20:10]} {[%emt 00:00:02]} 3. d4
{[%clk 00:20:14]} {[%emt 00:00:03]} cxd4 {[%clk 00:20:12]} {[%emt 00:00:02]} 4.
Nxd4 {[%clk 00:20:16]} {[%emt 00:00:03]} Nf6 {[%clk 00:20:14]} {[%emt
00:00:02]} 5. Nc3 {[%clk 00:20:19]} {[%emt 00:00:03]} d6 {[%clk 00:20:14]}
{[%emt 00:00:06]} 6. Be3 {[%clk 00:20:16]} {[%emt 00:00:08]} Ng4 {[%clk
00:20:15]} {[%emt 00:00:04]} 7. Qd2 {[%clk 00:20:03]} {[%emt 00:00:17]} Nxe3
{[%clk 00:20:11]} {[%emt 00:00:09]} 8. Qxe3 {[%clk 00:20:05]} {[%emt 00:00:03]}
g6 {[%clk 00:20:10]} {[%emt 00:00:05]} 9. Bb5 {[%clk 00:20:02]} {[%emt
00:00:09]} Bd7 {[%clk 00:20:12]} {[%emt 00:00:03]} 10. O-O {[%clk 00:19:55]}
{[%emt 00:00:12]} Bg7 {[%clk 00:20:13]} {[%emt 00:00:04]} 11. Nxc6 {[%clk
00:19:37]} {[%emt 00:00:23]} bxc6 {[%clk 00:20:12]} {[%emt 00:00:06]} 12. Be2
{[%clk 00:19:30]} {[%emt 00:00:11]} O-O {[%clk 00:20:11]} {[%emt 00:00:07]} 13.
Rad1 {[%clk 00:19:20]} {[%emt 00:00:15]} Qb6 {[%clk 00:20:07]} {[%emt
00:00:09]} 14. Qxb6 {[%clk 00:18:56]} {[%emt 00:00:29]} axb6 {[%clk 00:20:10]}
{[%emt 00:00:02]} 15. Ra1 {[%clk 00:17:22]} {[%emt 00:01:39]} Bxc3 {[%clk
00:20:09]} {[%emt 00:00:05]} 16. bxc3 {[%clk 00:17:25]} {[%emt 00:00:03]} Ra3
{[%clk 00:20:10]} {[%emt 00:00:04]} 17. c4 {[%clk 00:16:59]} {[%emt 00:00:31]}
Rfa8 {[%clk 00:20:04]} {[%emt 00:00:11]} 18. Rfb1 {[%clk 00:16:53]} {[%emt
00:00:11]} Rxa2 {[%clk 00:19:50]} {[%emt 00:00:19]} 19. Rxa2 {[%clk 00:16:51]}
{[%emt 00:00:07]} Rxa2 {[%clk 00:19:52]} {[%emt 00:00:03]} 20. Rxb6 {[%clk
00:16:44]} {[%emt 00:00:12]} Rxc2 {[%clk 00:19:46]} {[%emt 00:00:10]} 21. Bf1
{[%clk 00:16:28]} {[%emt 00:00:22]} c5 {[%clk 00:19:25]} {[%emt 00:00:27]} 22.
Rb7 {[%clk 00:16:11]} {[%emt 00:00:22]} Be6 {[%clk 00:19:14]} {[%emt 00:00:15]}
23. Rxe7 {[%clk 00:16:04]} {[%emt 00:00:11]} Rc1 {[%clk 00:19:14]} {[%emt
00:00:06]} 24. Rxe6 {[%clk 00:15:37]} {[%emt 00:00:32]} fxe6 {[%clk 00:19:16]}
{[%emt 00:00:02]} 25. f3 {[%clk 00:15:39]} {[%emt 00:00:03]} Kf7 {[%clk
00:19:14]} {[%emt 00:00:07]} 26. Kf2 {[%clk 00:15:39]} {[%emt 00:00:05]} Kf6
{[%clk 00:19:12]} {[%emt 00:00:06]} 27. g3 {[%clk 00:15:20]} {[%emt 00:00:25]}
Ke5 {[%clk 00:19:06]} {[%emt 00:00:10]} 28. Be2 {[%clk 00:14:54]} {[%emt
00:00:32]} Kd4 {[%clk 00:19:04]} {[%emt 00:00:07]} 29. g4 {[%clk 00:14:13]}
{[%emt 00:00:46]} g5 {[%clk 00:18:56]} {[%emt 00:00:13]} 30. Kg3 {[%clk
00:13:56]} {[%emt 00:00:22]} Ke3 {[%clk 00:18:56]} {[%emt 00:00:05]} 31. h4
{[%clk 00:13:19]} {[%emt 00:00:42]} h6 {[%clk 00:18:54]} {[%emt 00:00:07]} 32.
hxg5 {[%clk 00:13:08]} {[%emt 00:00:17]} hxg5 {[%clk 00:18:56]} {[%emt
00:00:02]} 33. f4 {[%clk 00:13:05]} {[%emt 00:00:08]} gxf4 {[%clk 00:18:57]}
{[%emt 00:00:03]} 34. Kh4 {[%clk 00:13:09]} {[%emt 00:00:03]} Kxe2 {[%clk
00:18:57]} {[%emt 00:00:04]} 35. g5 {[%clk 00:13:12]} {[%emt 00:00:02]} f3
{[%clk 00:18:57]} {[%emt 00:00:05]} 36. g6 {[%clk 00:13:12]} {[%emt 00:00:04]}
f2 {[%clk 00:18:55]} {[%emt 00:00:08]} 37. g7 {[%clk 00:13:13]} {[%emt
00:00:05]} f1=Q {[%clk 00:18:46]} {[%emt 00:00:13]} 38. g8=Q {[%clk 00:12:57]}
{[%emt 00:00:21]} Qh1+ {[%clk 00:18:46]} {[%emt 00:00:04]} 39. Kg5 {[%clk
00:12:57]} {[%emt 00:00:06]} Rg1+ {[%clk 00:18:44]} {[%emt 00:00:06]} 40. Kf6
{[%clk 00:12:58]} {[%emt 00:00:05]} Rxg8 {[%clk 00:18:42]} {[%emt 00:00:07]}
0-1



[ePGN "0.1;DGT LiveChess/2.2.6"]

[Event "MČR juniorů a juniorek v rapid šachu 2024"]
[Site "Hotel Fit Fun, Harrachov, Czech Republic"]
[Date "2024.09.21"]
[Round "4.27"]
[White "Housa Jan"]
[Black "Krizan Jakub"]
[Result "1-0"]
[TimeControl "20+5"]
[WhiteFideId "23736356"]
[BlackFideId "23717017"]
[WhiteElo "1788"]
[BlackElo "1000"]

1. d4 {[%clk 00:20:08]} {[%emt 01:23:21]} d5 {[%clk 00:20:07]} {[%emt
00:00:09]} 2. c4 {[%clk 00:20:11]} {[%emt 00:00:02]} Nf6 {[%clk 00:19:56]}
{[%emt 00:00:17]} 3. Nf3 {[%clk 00:19:48]} {[%emt 00:00:28]} c5 {[%clk
00:19:52]} {[%emt 00:00:08]} 4. cxd5 {[%clk 00:19:39]} {[%emt 00:00:14]} Qxd5
{[%clk 00:19:47]} {[%emt 00:00:10]} 5. Nc3 {[%clk 00:19:42]} {[%emt 00:00:03]}
Qd8 {[%clk 00:19:50]} {[%emt 00:00:01]} 6. Bf4 {[%clk 00:18:52]} {[%emt
00:00:54]} cxd4 {[%clk 00:19:12]} {[%emt 00:00:44]} 7. Nxd4 {[%clk 00:18:31]}
{[%emt 00:00:27]} Nbd7 {[%clk 00:18:05]} {[%emt 00:01:11]} 8. Qa4 {[%clk
00:17:20]} {[%emt 00:01:16]} Qb6 {[%clk 00:16:08]} {[%emt 00:02:02]} 9. Ndb5
{[%clk 00:15:54]} {[%emt 00:01:30]} e5 {[%clk 00:15:10]} {[%emt 00:01:04]} 10.
Bxe5 {[%clk 00:12:38]} {[%emt 00:03:22]} Nxe5 {[%clk 00:15:08]} {[%emt
00:00:06]} 11. Nc7+ {[%clk 00:12:23]} {[%emt 00:00:19]} Ke7 {[%clk 00:13:45]}
{[%emt 00:01:28]} 12. N3d5+ {[%clk 00:12:25]} {[%emt 00:00:03]} Nxd5 {[%clk
00:13:46]} {[%emt 00:00:05]} 13. Nxd5+ {[%clk 00:12:28]} {[%emt 00:00:02]} Kd8
{[%clk 00:13:43]} {[%emt 00:00:08]} 14. Nxb6 {[%clk 00:12:30]} {[%emt
00:00:02]} Bc5 {[%emt 00:00:25]} 15. Rd1+ Ke7 {[%clk 00:13:34]} {[%emt
00:00:01]} 16. Nxa8 {[%clk 00:12:23]} {[%emt 00:00:11]} Bd7 {[%clk 00:13:31]}
{[%emt 00:00:09]} 17. Qe4 {[%clk 00:12:17]} {[%emt 00:00:08]} f6 {[%clk
00:13:29]} {[%emt 00:00:09]} 18. f4 {[%clk 00:12:18]} {[%emt 00:00:05]} Rxa8
{[%clk 00:13:29]} {[%emt 00:00:04]} 19. fxe5 {[%clk 00:12:21]} {[%emt
00:00:02]} Re8 {[%clk 00:13:30]} {[%emt 00:00:05]} 20. Qxb7 {[%clk 00:12:19]}
{[%emt 00:00:06]} fxe5 {[%clk 00:13:22]} {[%emt 00:00:13]} 21. Rxd7+ {[%clk
00:12:22]} {[%emt 00:00:03]} Kf6 {[%clk 00:13:24]} {[%emt 00:00:02]} 22. Qf3+
{[%clk 00:12:23]} {[%emt 00:00:04]} Kg6 {[%clk 00:13:00]} {[%emt 00:00:29]} 23.
e4 {[%clk 00:12:21]} {[%emt 00:00:06]} Rf8 {[%clk 00:12:47]} {[%emt 00:00:19]}
24. Qg4+ {[%clk 00:12:24]} {[%emt 00:00:01]} Kh6 {[%clk 00:12:44]} {[%emt
00:00:09]} 25. Qxg7+ {[%clk 00:12:26]} {[%emt 00:00:03]} Kh5 {[%clk 00:12:48]}
26. Be2+ {[%clk 00:12:29]} {[%emt 00:00:01]} Kh4 {[%clk 00:12:52]} {[%emt
00:00:02]} 27. Qg4# {[%emt 00:00:02]} 1-0



[ePGN "0.1;DGT LiveChess/2.2.6"]

[Event "MČR juniorů a juniorek v rapid šachu 2024"]
[Site "Hotel Fit Fun, Harrachov, Czech Republic"]
[Date "2024.09.21"]
[Round "4.28"]
[White "Jun Rostislav"]
[Black "Nagyova Daniela"]
[Result "0-1"]
[TimeControl "20+5"]
[WhiteFideId "23719524"]
[BlackFideId "390070"]
[WhiteElo "1641"]
[BlackElo "1787"]

1. e4 {[%clk 00:20:08]} {[%emt 00:00:02]} e5 {[%clk 00:20:08]} {[%emt
00:00:02]} 2. d4 {[%clk 00:20:12]} {[%emt 00:00:01]} exd4 {[%clk 00:20:07]}
{[%emt 00:00:05]} 3. Qxd4 {[%clk 00:20:15]} {[%emt 00:00:02]} Nc6 {[%clk
00:20:07]} {[%emt 00:00:06]} 4. Qe3 {[%clk 00:20:18]} {[%emt 00:00:02]} Nf6
{[%clk 00:20:06]} {[%emt 00:00:05]} 5. Nc3 {[%clk 00:20:20]} {[%emt 00:00:05]}
Bb4 {[%clk 00:20:06]} {[%emt 00:00:03]} 6. Bd2 {[%clk 00:20:22]} {[%emt
00:00:04]} O-O {[%clk 00:20:01]} {[%emt 00:00:09]} 7. O-O-O {[%clk 00:20:24]}
{[%emt 00:00:05]} Re8 {[%clk 00:19:57]} {[%emt 00:00:08]} 8. f3 {[%clk
00:20:06]} {[%emt 00:00:22]} d5 {[%clk 00:18:45]} {[%emt 00:01:17]} 9. Qf2
{[%clk 00:19:18]} {[%emt 00:00:53]} d4 {[%clk 00:17:24]} {[%emt 00:01:27]} 10.
Na4 {[%clk 00:17:37]} {[%emt 00:01:45]} a5 {[%clk 00:15:39]} {[%emt 00:01:51]}
11. a3 {[%clk 00:17:11]} {[%emt 00:00:30]} Bxd2+ {[%clk 00:13:34]} {[%emt
00:02:10]} 12. Qxd2 {[%clk 00:17:02]} {[%emt 00:00:14]} Qe7 {[%clk 00:13:14]}
{[%emt 00:00:27]} 13. Bb5 {[%clk 00:13:46]} {[%emt 00:03:19]} Rd8 {[%clk
00:11:41]} {[%emt 00:01:38]} 14. Ne2 {[%clk 00:12:15]} {[%emt 00:01:36]} Na7
{[%clk 00:10:45]} {[%emt 00:01:01]} 15. Nac3 {[%clk 00:10:14]} {[%emt
00:02:06]} c6 {[%clk 00:09:39]} {[%emt 00:01:12]} 16. Bd3 {[%clk 00:09:29]}
{[%emt 00:00:49]} dxc3 {[%clk 00:09:34]} {[%emt 00:00:10]} 17. Nxc3 {[%clk
00:09:24]} {[%emt 00:00:10]} Be6 {[%clk 00:09:18]} {[%emt 00:00:21]} 18. e5
{[%clk 00:09:24]} {[%emt 00:00:06]} Nd5 {[%clk 00:08:58]} {[%emt 00:00:24]} 19.
Ne4 {[%clk 00:09:25]} {[%emt 00:00:05]} b5 {[%clk 00:07:39]} {[%emt 00:01:25]}
20. f4 {[%clk 00:07:58]} {[%emt 00:01:31]} b4 {[%clk 00:06:28]} {[%emt
00:01:15]} 21. a4 {[%clk 00:07:55]} {[%emt 00:00:07]} b3 {[%clk 00:05:40]}
{[%emt 00:00:53]} 22. cxb3 {[%clk 00:07:49]} {[%emt 00:00:12]} Nb4 {[%clk
00:05:30]} {[%emt 00:00:14]} 0-1



[ePGN "0.1;DGT LiveChess/2.2.6"]

[Event "MČR juniorů a juniorek v rapid šachu 2024"]
[Site "Hotel Fit Fun, Harrachov, Czech Republic"]
[Date "2024.09.21"]
[Round "4.29"]
[White "Hrazdira Matyas Josef"]
[Black "Horvath Michal"]
[Result "1-0"]
[TimeControl "20+5"]
[WhiteFideId "23732954"]
[WhiteElo "1786"]
[BlackElo "1000"]

1. e4 {[%clk 00:20:07]} {[%emt 00:00:02]} c6 {[%clk 00:20:10]} 2. Nc3 {[%clk
00:20:10]} {[%emt 00:00:02]} d5 {[%clk 00:20:13]} {[%emt 00:00:02]} 3. Qf3
{[%clk 00:20:14]} {[%emt 00:00:03]} dxe4 {[%clk 00:19:55]} {[%emt 00:00:22]} 4.
Nxe4 {[%clk 00:20:17]} {[%emt 00:00:02]} Nd7 {[%clk 00:19:40]} {[%emt
00:00:20]} 5. c3 {[%clk 00:20:17]} {[%emt 00:00:05]} Ngf6 {[%clk 00:19:38]}
{[%emt 00:00:06]} 6. Nxf6+ {[%clk 00:20:20]} {[%emt 00:00:02]} Nxf6 {[%clk
00:19:41]} {[%emt 00:00:02]} 7. d4 {[%clk 00:19:59]} {[%emt 00:00:26]} Bg4
{[%clk 00:19:40]} {[%emt 00:00:06]} 8. Qd3 {[%clk 00:20:02]} {[%emt 00:00:02]}
e6 {[%clk 00:19:40]} {[%emt 00:00:06]} 9. Bg5 {[%clk 00:19:00]} {[%emt
00:01:07]} Bf5 {[%clk 00:19:42]} {[%emt 00:00:03]} 10. Qe3 {[%clk 00:18:24]}
{[%emt 00:00:40]} Be7 {[%clk 00:19:08]} {[%emt 00:00:40]} 11. Nf3 {[%clk
00:16:24]} {[%emt 00:02:04]} Nd5 {[%clk 00:17:38]} {[%emt 00:01:35]} 12. Qd2
{[%clk 00:15:41]} {[%emt 00:00:48]} f6 {[%clk 00:15:55]} {[%emt 00:01:49]} 13.
Be3 {[%clk 00:15:23]} {[%emt 00:00:23]} Qc7 {[%clk 00:14:56]} {[%emt 00:01:04]}
14. Bd3 {[%clk 00:13:36]} {[%emt 00:01:51]} Bxd3 {[%clk 00:14:27]} {[%emt
00:00:34]} 15. Qxd3 {[%clk 00:13:39]} {[%emt 00:00:03]} O-O-O {[%clk 00:13:49]}
{[%emt 00:00:42]} 16. Qe4 {[%clk 00:12:44]} {[%emt 00:01:00]} e5 {[%clk
00:12:04]} {[%emt 00:01:51]} 17. dxe5 {[%clk 00:12:05]} {[%emt 00:00:43]} fxe5
{[%clk 00:11:34]} {[%emt 00:00:35]} 18. Qxe5 {[%clk 00:10:24]} {[%emt
00:01:47]} Bd6 {[%clk 00:11:06]} {[%emt 00:00:32]} 19. Qf5+ {[%clk 00:10:15]}
{[%emt 00:00:12]} Kb8 {[%clk 00:10:53]} {[%emt 00:00:20]} 20. O-O-O {[%clk
00:08:59]} {[%emt 00:01:21]} g6 {[%clk 00:10:48]} {[%emt 00:00:10]} 21. Qc2
{[%clk 00:08:51]} {[%emt 00:00:13]} Rhe8 {[%clk 00:10:02]} {[%emt 00:00:51]} 22.
Bg5 {[%clk 00:08:27]} {[%emt 00:00:28]} Bf4+ {[%clk 00:08:41]} {[%emt
00:01:27]} 23. Kb1 {[%clk 00:06:34]} {[%emt 00:01:59]} Bxg5 {[%clk 00:07:50]}
{[%emt 00:00:56]} 24. Nxg5 {[%clk 00:06:37]} {[%emt 00:00:02]} Nf4 {[%clk
00:06:54]} {[%emt 00:01:00]} 25. Rhe1 {[%clk 00:01:25]} {[%emt 00:05:17]} Rxe1
{[%clk 00:04:58]} {[%emt 00:02:01]} 26. Rxe1 {[%clk 00:01:22]} {[%emt
00:00:08]} Qd7 {[%clk 00:04:18]} {[%emt 00:00:45]} 27. g3 {[%clk 00:00:36]}
{[%emt 00:00:51]} Nd3 {[%clk 00:03:46]} {[%emt 00:00:37]} 28. Rd1 {[%clk
00:00:25]} {[%emt 00:00:16]} Kc8 {[%clk 00:02:56]} {[%emt 00:00:55]} 29. f4
{[%clk 00:00:11]} {[%emt 00:00:20]} c5 {[%clk 00:01:40]} {[%emt 00:01:21]} 30.
Nf3 {[%clk 00:00:10]} {[%emt 00:00:06]} Qf5 {[%clk 00:00:16]} {[%emt 00:01:28]}
31. a4 {[%clk 00:00:09]} {[%emt 00:00:06]} c4 {[%clk 00:00:00]} {[%emt
00:00:27]} 1-0



[ePGN "0.1;DGT LiveChess/2.2.6"]

[Event "MČR juniorů a juniorek v rapid šachu 2024"]
[Site "Hotel Fit Fun, Harrachov, Czech Republic"]
[Date "2024.09.21"]
[Round "4.3"]
[White "Jun Robert"]
[Black "Lihotsky Lukas"]
[Result "0-1"]
[TimeControl "20+5"]
[WhiteFideId "23709510"]
[BlackFideId "23727004"]
[WhiteElo "1681"]
[BlackElo "1975"]

1. e4 {[%clk 00:20:08]} {[%emt 00:00:01]} c6 {[%clk 00:19:59]} {[%emt
00:00:11]} 2. d4 {[%clk 00:20:08]} {[%emt 00:00:07]} d5 {[%clk 00:20:03]} 3.
exd5 {[%clk 00:20:12]} cxd5 {[%clk 00:20:08]} 4. c4 {[%clk 00:20:16]} Nf6
{[%clk 00:20:12]} 5. Nc3 {[%clk 00:20:20]} {[%emt 00:00:01]} Nc6 {[%clk
00:20:12]} {[%emt 00:00:04]} 6. Nf3 {[%clk 00:20:21]} {[%emt 00:00:06]} Bg4
{[%clk 00:19:15]} {[%emt 00:01:00]} 7. cxd5 {[%clk 00:20:02]} {[%emt 00:00:25]}
Nxd5 {[%clk 00:19:19]} 8. Be2 {[%clk 00:19:58]} {[%emt 00:00:09]} e6 {[%clk
00:18:47]} {[%emt 00:00:37]} 9. O-O {[%clk 00:19:59]} {[%emt 00:00:03]} Be7
{[%clk 00:18:36]} {[%emt 00:00:16]} 10. Ne5 {[%clk 00:19:29]} {[%emt 00:00:35]}
Bxe2 {[%clk 00:18:27]} {[%emt 00:00:14]} 11. Nxe2 {[%clk 00:19:33]} Rc8 {[%clk
00:17:54]} {[%emt 00:00:38]} 12. Be3 {[%clk 00:18:57]} {[%emt 00:00:42]} Nxe5
{[%clk 00:17:31]} {[%emt 00:00:27]} 13. dxe5 {[%clk 00:19:00]} {[%emt
00:00:02]} Nxe3 {[%clk 00:17:28]} {[%emt 00:00:08]} 14. fxe3 {[%clk 00:19:02]}
{[%emt 00:00:03]} Qb6 {[%clk 00:17:02]} {[%emt 00:00:31]} 15. Nd4 {[%clk
00:17:53]} {[%emt 00:01:14]} O-O {[%clk 00:16:58]} {[%emt 00:00:08]} 16. b3
{[%clk 00:17:53]} {[%emt 00:00:05]} Rc5 {[%clk 00:16:07]} {[%emt 00:00:55]} 17.
Rc1 {[%clk 00:15:28]} {[%emt 00:02:31]} Rxe5 {[%clk 00:14:17]} {[%emt
00:01:56]} 18. Rf3 {[%clk 00:14:40]} {[%emt 00:00:52]} Bc5 {[%clk 00:13:18]}
{[%emt 00:01:04]} 19. Qd3 {[%clk 00:14:22]} {[%emt 00:00:24]} Rxe3 {[%clk
00:12:43]} {[%emt 00:00:39]} 20. Rxe3 {[%clk 00:13:17]} {[%emt 00:01:10]} Bxd4
{[%clk 00:12:47]} {[%emt 00:00:01]} 21. Rce1 {[%clk 00:13:13]} {[%emt
00:00:10]} Rd8 {[%clk 00:11:38]} {[%emt 00:01:14]} 22. Qe4 {[%clk 00:13:17]}
Bxe3+ {[%clk 00:11:08]} {[%emt 00:00:35]} 23. Rxe3 {[%clk 00:13:17]} {[%emt
00:00:04]} Qd4 {[%clk 00:10:03]} {[%emt 00:01:09]} 24. Qf3 {[%clk 00:12:28]}
{[%emt 00:00:55]} Qd1+ {[%clk 00:10:01]} {[%emt 00:00:07]} 25. Qxd1 {[%clk
00:12:32]} {[%emt 00:00:02]} Rxd1+ {[%clk 00:10:05]} {[%emt 00:00:01]} 26. Kf2
{[%clk 00:12:35]} Rd2+ {[%clk 00:10:08]} {[%emt 00:00:02]} 27. Re2 {[%clk
00:12:39]} {[%emt 00:00:01]} Rxe2+ 28. Kxe2 {[%clk 00:12:43]} Kf8 {[%clk
00:10:08]} {[%emt 00:00:02]} 29. Kd3 {[%clk 00:12:46]} {[%emt 00:00:02]} Ke7
{[%clk 00:10:12]} 0-1



[ePGN "0.1;DGT LiveChess/2.2.6"]